Cogmind - Beta 17 @@@ ROGUE MODE // 2026.08.03 @ 17:01:26 Player: MeatnTaters Result: Destroyed by S-10 Pest with Light Assault Rifle Performance ------------- Evolutions (1) 500 Regions Visited (2) 400 Robots Destroyed (23) 115 Value Destroyed (496) 496 Prototype IDs (0) 0 Alien Tech Used (0) 0 Bonus (0) 0 TOTAL SCORE: 1511 Bonus ------- None Cogmind --------- Core Integrity 0/400 Matter 254/300 Energy 91/100 System Corruption 0% Temperature Cool (0) Movement Core (50) Location -9/Materials Parts ------- > --- POWER (1) -------- (None) > --- PROPULSION (2) --- (None) > --- UTILITY (4) ------ Visual Processing Unit Signal Interpreter > --- WEAPON (2) ------- (None) > --- INVENTORY (5) ---- Large Storage Unit Light Assault Rifle Peak State ------------ > --- POWER ------------ Improved Ion Engine > --- PROPULSION ------- Light Treads Light Treads > --- UTILITY ---------- Large Storage Unit Visual Processing Unit Signal Interpreter > --- WEAPON ----------- Small Laser Heavy Assault Rifle > --- INVENTORY -------- Improved Ion Engine EM Pulse Gun EM Pulse Gun Light Assault Rifle Light Assault Rifle [Rating: 11] Favorites ----------- Power Ion Engine Engine Ion Engine Propulsion Light Treads Treads Light Treads Utility Large Storage Unit Storage Large Storage Unit Processor Signal Interpreter Weapon Small Laser Energy Gun Small Laser Ballistic Gun Heavy Assault Rifle Build | -11 -10 -9 ------- Run | Yrd Mat Mat Slots Evolved 2 | . . 2 Power . | . . . Propulsion . | . . . Utility 2 | . . 2 Weapon . | . . . Parts Attached 13 | 6 2 5 Power 3 | 1 . 2 Engine 3 | 1 . 2 Core . | . . . Reactor . | . . . Propulsion 2 | 2 . . Treads 2 | 2 . . Leg . | . . . Wheel . | . . . Hover . | . . . Flight . | . . . Utility 4 | 1 2 1 Device . | . . . Storage 2 | 1 1 . Processor 2 | . 1 1 Hackware . | . . . Protection . | . . . Artifact . | . . . Weapon 4 | 2 . 2 Energy Gun 2 | 2 . . Energy Cannon . | . . . Ballistic Gun 2 | . . 2 Ballistic Cannon . | . . . Launcher . | . . . Special Weapon . | . . . Impact Weapon . | . . . Slashing Weapon . | . . . Piercing Weapon . | . . . Special Melee Weapon . | . . . Unidentified Prototypes . | . . . Parts Lost 6 | . . 6 Power 2 | . . 2 Propulsion 2 | . . 2 Utility . | . . . Weapon 2 | . . 2 Highest Loss Streak 5 | . . 5 To Critical Strikes . | . . . Average Backups 3 | 1 2 3 Power . | . 1 . Propulsion . | . . . Utility . | . . . Weapon 2 | . 1 2 Tool/Special . | . . . Unused Backups 5 | . . 5 Power 2 | . . 2 Propulsion . | . . . Utility . | . . . Weapon 3 | . . 3 Tool/Special . | . . . Average Slot Usage (%) 80 | . 88 76 Engine 11 | . 14 10 Treads 21 | . 28 19 Storage 11 | . 14 10 Processor 12 | . 2 16 Energy Gun 18 | . 28 15 Ballistic Gun 3 | . . 5 Peak Build Rating 11 | 6 7 11 Average Rating 7 | 4 6 8 On Entrance 4 | . 6 7 Avg Prop Armor Cover (%) . | . . . Naked Turns . | . . . Heaviest Build 31 | 13 28 31 Greatest Support 40 | 40 40 40 Greatest Overweight (x) 8 | . . 8 Average Overweight (x) . | . . . Largest Inventory Capacity 15 | 8 15 15 Average Capacity 13 | 6 12 14 Most Carried 6 | 2 3 6 Average Carried 3 | 1 2 3 Final Capacity 15 | 8 15 5 Final Carried 2 | 2 2 2 Class Distribution -------------------- 100% | Mutant Dominant Class ---------------- Mutant | -10/Materials Mutant | -9/Materials Resources | -11 -10 -9 ----------- Run | Yrd Mat Mat Matter Collected 362 | 210 16 136 Remotely . | . . . Salvage Created 703 | . 16 687 Parts 50 | . 2 48 Haulers Intercepted . | . . . Recyclers Shooed . | . . . Parts Field Recycled . | . . . Retrieved Matter . | . . . Parts Self-Destructed . | . . . Prevented . | . . . Parts Restored . | . . . Kills | -11 -10 -9 ------- Run | Yrd Mat Mat Combat Hostiles Destroyed 18 | . . 18 Guns 18 | . . 18 Classes Destroyed 7 | . 1 6 Worker 1 | . . 1 Recycler 1 | . . 1 Watcher 3 | . 1 2 Swarmer 9 | . . 9 Grunt 6 | . . 6 Duelist 1 | . . 1 Sentry 2 | . . 2 Best Kill Streak 13 | . 1 13 Combat Bots Only 8 | . . 8 Max Kills in Single Turn 2 | . 1 2 Gunslinging 1 | . . 1 Exploded . | . . . Melee . | . . . Uniques/NPCs Destroyed . | . . . Combat | -11 -10 -9 -------- Run | Yrd Mat Mat Hostile Shots Fired 158 | . 2 156 Missed 46 | . 1 45 Hits 112 | . 1 111 Melee 4 | . . 4 Projectile 108 | . 1 107 Critical Strikes 2 | . . 2 Damage Taken 1210 | . 9 1201 Core 405 | . . 405 Absorbed by Shields . | . . . Core Remaining (%) 100 | 100 100 . Volleys Fired 55 | . 1 54 Largest 2 | . 2 2 Hottest 80 | . 80 80 Shots Fired 94 | . 2 92 Gun 94 | . 2 92 Cannon . | . . . Launcher . | . . . Special . | . . . Kinetic 40 | . . 40 Thermal 39 | . 1 38 Explosive . | . . . Electromagnetic 15 | . 1 14 Robot Hit Streak 10 | . 1 10 Robot Miss Streak 3 | . 1 3 Penetration Max . | . . . Secondary Targets 4 | . . 4 Max Gunslinging Chain 1 | . . 1 Shots Hit Robots 65 | . 1 64 Core Hits 35 | . 2 33 Critical Kills 1 | . . 1 Critical Parts Destroyed 1 | . . 1 Critical Strikes 4 | . 1 3 Destroy 2 | . . 2 Corrupt 2 | . 1 1 Melee Attacks . | . . . Impact . | . . . Slashing . | . . . Piercing . | . . . Sneak Attacks . | . . . Combat Hostiles . | . . . Follow-up Attacks . | . . . Damage Inflicted 949 | . 74 875 Guns 897 | . 22 875 Cannons . | . . . Explosions 52 | . 52 . Melee . | . . . Ramming . | . . . Kinetic 430 | . . 430 Thermal 356 | . 52 304 Explosive . | . . . Electromagnetic 163 | . 22 141 Impact . | . . . Slashing . | . . . Piercing . | . . . Highest Corruption . | . . . Average Corruption . | . . . Corruption Purged . | . . . Corruption Blocked . | . . . Overload Shots . | . . . Overflow Damage . | . . . Projectiles . | . . . Explosions . | . . . Melee . | . . . Knockbacks . | . . . Impact . | . . . Kinetic . | . . . Secondary . | . . . Self-Inflicted Damage . | . . . Shots . | . . . Rammed . | . . . Targets Rammed . | . . . Kicked . | . . . Crushed . | . . . Highest Temperature 90 | . 18 90 Average Temperature 28 | . 12 28 Received Heat Transfer 321 | . . 321 Siege Activations . | . . . Martial Activations . | . . . Shielding Activations . | . . . Robots Disrupted . | . . . Combat Hostiles . | . . . Robots Corrupted . | . . . Combat Hostiles . | . . . Parts Fried . | . . . Impact Corruptions . | . . . Robots Melted . | . . . Combat Hostiles . | . . . Parts Melted . | . . . Heat Transferred 800 | . 100 700 Parts Sabotaged . | . . . Parts Stolen . | . . . Parts Stripped . | . . . Power Chain Reactions 1 | . 1 . Alert | -11 -10 -9 ------- Run | Yrd Mat Mat Maximum Alert Level 1 | . . 1 Low Security (%) 92 | 100 100 88 Level 1 7 | . . 11 Level 2 . | . . . Level 3 . | . . . Level 4 . | . . . Level 5 . | . . . High Security . | . . . Max Security . | . . . Peak Influence 220 | . 26 220 Initial 1 | . . 1 Average 50 | . 2 77 Influence Increases 480 | . 26 454 Destroy 0b10 Robot/C 360 | . . 360 Destroy 0b10 Robot/NC 25 | . 5 20 Destroy Leader 66 | . 2 64 Successful Hack 9 | . . 9 Disable Machine 15 | . 15 . Destroy Structure 5 | . 4 1 Influence Decreases 278 | . 20 258 Entered New Map 5 | . . 5 Time Decay 213 | . 20 193 Lost Part 60 | . . 60 Squads Dispatched 1 | . . 1 Investigation . | . . . Extermination . | . . . Reinforcement 1 | . . 1 Assault . | . . . Garrison . | . . . Intercept . | . . . Searches Triggered . | . . . Construction Impeded . | . . . Haulers Reinforced . | . . . Active Scanning Responses . | . . . Cargo Convoy Interrupts . | . . . Stealth | -11 -10 -9 --------- Run | Yrd Mat Mat Distress Signals 3 | . . 3 Communications Jammed . | . . . Distress Signals . | . . . Times Spotted 37 | . 5 32 Peak Tracking Total 7 | . 3 7 Tactical Retreats . | . . . Traps | -11 -10 -9 ------- Run | Yrd Mat Mat Traps Triggered . | . . . Indirectly . | . . . Trap Hack Attempts . | . . . Triggered . | . . . Disarmed . | . . . Reprogrammed . | . . . Reused . | . . . Traps Extracted . | . . . Installed . | . . . Triggered . | . . . Machines | -11 -10 -9 ---------- Run | Yrd Mat Mat Machines Disabled 1 | . 1 . Max in Single Turn 1 | . 1 . Machines Repaired . | . . . Machines Dismantled . | . . . Machines Sabotaged . | . . . Overloaded Fab Kills . | . . . Hacking | -11 -10 -9 --------- Run | Yrd Mat Mat Machines Accessed 3 | . 2 1 Terminals 3 | . 2 1 Fabricators . | . . . Repair Stations . | . . . Recycling Units . | . . . Scanalyzers . | . . . Garrison Access . | . . . Total Hacks 4 | . 3 1 Successful 2 | . 1 1 Failed 2 | . 2 . Catastrophic 1 | . 1 . Database Lockouts . | . . . Manual 3 | . 2 1 Terminals 4 | . 3 1 Fabricators . | . . . Repair Stations . | . . . Recycling Units . | . . . Scanalyzers . | . . . Garrison Access . | . . . Terminal Hacks 2 | . 1 1 Level Access Points 1 | . . 1 Zone Layout 1 | . 1 . Fabricator Hacks . | . . . Repair Station Hacks . | . . . Recycling Unit Hacks . | . . . Scanalyzer . | . . . Garrison Access Hacks . | . . . Unauthorized Hacks . | . . . Terminals . | . . . Fabricators . | . . . Repair Stations . | . . . Recycling Units . | . . . Scanalyzers . | . . . Garrison Access . | . . . Data Cores Recovered . | . . . Used . | . . . Hacking Detections 2 | . 2 . Full Trace Events . | . . . Feedback Events . | . . . Feedback Blocked . | . . . Robot Schematics Acquired . | . . . Robots Built . | . . . Authchips . | . . . Time . | . . . Total Robot Build Rating . | . . . Part Schematics Acquired . | . . . Parts Built . | . . . Authchips . | . . . Time . | . . . Total Part Build Rating . | . . . Part Studies Acquired . | . . . Parts Repaired . | . . . Time . | . . . Parts Recycled . | . . . Recycled Matter . | . . . Retrieved Matter . | . . . Retrieved Components . | . . . Parts Scanalyzed . | . . . Part Schematics Acquired . | . . . Parts Damaged . | . . . Bothacking | -11 -10 -9 ------------ Run | Yrd Mat Mat Used RIF Installer . | . . . Robots Hacked . | . . . Non-combat . | . . . Combat . | . . . Robot Hacks Applied . | . . . Relay Couplers Released . | . . . Fabnet Peak Effective % . | . . . Robots Rewired . | . . . Allies Hacked . | . . . Hacks Repelled . | . . . Allies | -11 -10 -9 -------- Run | Yrd Mat Mat Total Allies . | . . . Largest Group . | . . . Highest-Rated Group . | . . . Highest-Rated Ally . | . . . Total Orders . | . . . Ally Attacks . | . . . Total Damage . | . . . Kills . | . . . Allies Corrupted . | . . . Allies Melted . | . . . Intel | -11 -10 -9 ------- Run | Yrd Mat Mat Active Infowar (turns) 218 | . . 218 Optics 218 | . . 218 Robot Analysis Total . | . . . Derelict Logs Recovered . | . . . Drone Launches . | . . . Drone Recoveries . | . . . Exploration | -11 -10 -9 ------------- Run | Yrd Mat Mat Turns Passed 720 | 64 191 465 Spaces Moved 332 | 35 113 184 Core 7 | 2 . 5 Treads 325 | 33 113 179 Legs . | . . . Wheels . | . . . Hover . | . . . Flight . | . . . Fastest Speed 50 | 50 160 50 Average Speed 159 | 153 160 159 Slowest Speed 450 | 160 160 450 Overloaded Moves . | . . . Propulsion Burnouts . | . . . Robots Hopped . | . . . Potential Cave-ins . | . . . Cave-ins Triggered . | . . . Exploration Rate (%) 17 | 3 26 24 Regions Visited 2 Branch Regions . Pre-discovered Areas . | . . . Known Exits Taken 1 | . 1 . Unknown Exits Taken 1 | 1 . . Scrap Searched . | . . . Spaces Dug . | . . . Terrain Destroyed 4 | . 4 . Melee . | . . . Projectile . | . . . AOE 4 | . 4 . Terrain Rammed . | . . . Walls Destroyed . | . . . Machines Disabled . | . . . Actions | -11 -10 -9 --------- Run | Yrd Mat Mat Total 431 | 42 122 267 Wait 15 | . 4 11 Move 330 | 34 112 184 Hop . | . . . Pick Up 6 | 2 1 3 Fast Attach 11 | 6 1 4 Attach 1 | . 1 . Detach 4 | . 1 3 Swap 1 | . . 1 Drop 8 | . 1 7 Fire 55 | . 1 54 Melee . | . . . Ram . | . . . Kick . | . . . Crush . | . . . Escape Stasis . | . . . Rewire . | . . . Trap . | . . . Miscellaneous . | . . . Route ------- -11/Scrapyard -10/Materials -9/Materials (discovered 4 exits: Mat x3 / [*Min]) History --------- Turn | Location | Event 22 | -11/Scrapyard | Discovered new exit (range 16) 65 | -11/Scrapyard | Entered Materials 210 | -10/Materials | Discovered new exit (range 16) 255 | -10/Materials | Identified exit to Materials 256 | -10/Materials | Entered another Materials area 256 | -9/Materials | Evolved 2 slots: Utility x2 308 | -9/Materials | Build established: Mutant 364 | -9/Materials | Identified exit to Materials 599 | -9/Materials | Discovered new exit (range 7) 675 | -9/Materials | Destroyed 8 combat bots 680 | -9/Materials | Core integrity fell below 50% 714 | -9/Materials | Core integrity fell below 20% 721 | -9/Materials | Destroyed by S-10 Pest with Light Assault Rifle Last Messages --------------- 00702_ R-06 Scavenger collects Lgt. Ion Engine. 00704_ C-30 ARC bursts open, deploying its payload. 00704_ S-10 Pest unfolds itself. 00704_ K-01 Serf collects debris. 00705_ R-06 Scavenger collects Lgt. Ion Engine. 00706_ Acquired Lgt. Assault Rifle. 00707_ G-34 Mercenary destroyed. 00708_ K-01 Serf collects debris. 00709_ S-10 Pest destroyed. 00710_ R-06 Scavenger collects Imp. Ion Engine. 00711_ K-01 Serf collects debris. 00713_ R-06 Scavenger collects Core Shielding. 00713_ K-01 Serf collects debris. 00716_ R-06 Scavenger collects Heat Sink. 00716_ Imp. Ion Engine destroyed. 00717_ K-01 Serf collects debris. 00717_ M-13 Machinist repairs A-02 Transporter. 00720_ Acquired 34 matter. 00720_ K-01 Serf collects debris. Map ----- +----------------------------------------------------+ | ?????????????????????????????????????????????????? | | ?????????????????????????????????????????????????? | | ?????????????????????????????????????????????????? | | ?????????????????????????????????????????????????? | | ?????????????????????????????????????????????????? | | ?????????????????????????????????????????????????? | | ?????????????????????????????????????????????????? | | ?????????????????????????????????????????????????? | | ?????????????????????????????????????????????????? | | ?????????????????????????????????????????????????? | | ?????????????????????????????????????????????????? | | ?????????????????????????????????????????????????? | | ?????????????????????????????????????????????????? | | ?????????????????????????????????????????????????? | | ?????????????????????#######?????????????????????? | | ?????????????????????? !#?????????????????????? | | ?????????????????????? ##????????????????????? | | ???????????????????????! /?????????????????????? | | ???????????????????????! #?????????????????????? | | ???????????????????????? u#?????????????????????? | | ????????????????????????!g[#########?????????????? | | ?????????????????########g## ##### ??????? | | ?????????????????# %=*=*lss=! ?????? | | ?????????????????# *%/==k=*[[ < ?????? | | ????????????###### % % *== ?????? | | ???? =*% [ =###@## ###???????????? | | ???? *=^ [[##%u*#??!"!" #?????????????? | | ???? """ ^ ## k #????!""#?????????????? | | ??????????""" ## !#??????##?????????????? | | ??????????""" ""## %!#?????????????????????? | | ??????????""" T"##k #?????????????????????? | | ?????????? ""## r #?????????????????????? | | ????????? ## #?????????????????????? | | ???????? ##+###?????????????????????? | | ???????#+######## ## #?##????????????????????? | | ?????????????#########?# ##T##########???????????? | | ?????????????# !!#????# #???????????? | | ?????????????#" #????# #???????????? | | ?????????????#" ###### #???????????? | | ?????????????#" + % ###+#+### #???????????? | | ?????????????#T # #???????? #???????????? | | ?????????????#" [ # #???????? #???????????? | | ?????????????#" + ##??????? #???????????? | | ?????????????#" #% +??????? #???????????? | | ?????????????# =# ##??????? #???????????? | | ?????????????### ##% #???????# #???????????? | | ????????########### #???????# #???????????? | | ????????# # #+#????#### #???????????? | | ????????# + #? ? ## #???????????? | | ????????# # #??" ## ##??????????? | +----------------------------------------------------+ Best States ------------- Heat Dissipation 28 Energy Generation 12 Energy Capacity 265 Matter Stores 300 Matter Capacity 300 Sight Range 18 Terrain Scan Density 10 Evasion (%) 40 Recoil Reduction 2 Item Schematics ----------------- None Robot Schematics ------------------ None Fabricated ------------ Nothing Repaired ---------- Nothing Studied --------- None Alien Tech Used ----------------- None Achievements -------------- None Challenges ------------ None Game ------ Seed AerolevSwordSource Manual? 0 Play Time 00:06:01 Cumulative 26.1 hours Start 2026.08.03 @ 16:55:33 End 2026.08.03 @ 17:01:26 Sessions 1 Manual Loads 0 Difficulty Rogue Special Mode None Game No. 32 Rogue 11 Adventurer 21 Explorer 0 Win Type - Total 0 Types 0/0/0/0/0/0/0/0/0/0 Lore% 19 Gallery% 20 Achievement% 18 Wizard Run 0 Options --------- Layout 1 ASCII 0 Keyboard 0 Movement Mouse Keybinds 0 Fullscreen 1 Font 32/SmallcapsGlow Map View 50x35 Zoom Use 0% Tactical HUD 1 Map Filters NONE Filters NONE Steam 1 RUN: e1cb5944-837e-42df-9584-a062fd51de5a